fUSD/lending_fUSD_20241125
["ID","MTS","AMOUNT","RATE_DAILY","PERIOD"]
[343250828,1732532687476,-151.0,0.0004082,14]
[343250829,1732532687500,-151.0,0.0004082,14]
[343250830,1732532687530,-151.0,0.0004082,14]
[343250831,1732532687554,-151.0,0.0004082,14]
[343250832,1732532687578,-151.0,0.0004082,14]
[343250833,1732532687602,-151.0,0.0004082,14]
[343250834,1732532687626,-185.070457,0.0004082,14]
[343250835,1732532687650,-185.070457,0.0004082,14]
[343250836,1732532687674,-151.0,0.0004082,14]
[343250837,1732532687698,-151.0,0.0004082,14]
[343250838,1732532687722,-151.0,0.0004082,14]
[343250839,1732532687746,-151.0,0.0004082,14]
[343250840,1732532687770,-833.792001,0.0004082,14]
[343250841,1732532687795,-1224.61,0.0004082,21]
[343250842,1732532687819,-151.0,0.0004082,14]
[343250843,1732532687843,-500.0,0.0004082,21]
[343250844,1732532687867,-500.0,0.0004082,21]
[343250845,1732532687890,-151.0,0.0004082,14]
[343250846,1732532687914,-151.0,0.0004082,14]
[343250847,1732532687939,-151.0,0.0004082,14]
[343250848,1732532687966,-159.109585,0.0004082,14]
[343250849,1732532687992,-159.109585,0.0004082,14]
[343250850,1732532688018,-500.0,0.0004082,21]
[343250851,1732532688045,-500.0,0.0004082,21]
[343250852,1732532688075,-1154.27,0.0004082,21]
[343250853,1732532688102,-924.22,0.0004082,21]
[343250854,1732532688128,-151.0,0.0004082,14]
[343250855,1732532688158,-696.89,0.0004082,21]
[343250856,1732532688184,-3150.76,0.0004082,21]
[343250857,1732532688213,-459.381304,0.0004082,14]
[343250858,1732532688240,-151.0,0.0004082,14]
[343250859,1732532688267,-459.381304,0.0004082,14]
[343250860,1732532688293,-169.845453,0.0004082,14]
[343250861,1732532688321,-9504.79,0.0004082,21]
[343250862,1732532688346,-9562.63768,0.0004082,14]
[343250863,1732532688373,-9562.63768,0.0004082,14]
[343250864,1732532688398,-151.0,0.0004082,7]
[343250865,1732532688423,-151.0,0.0004082,14]
[343250866,1732532688451,-7938.89,0.0004082,21]
[343250867,1732532688477,-1024.94,0.0004082,21]
[343250868,1732532688502,-151.0,0.0004082,14]
[343250869,1732532688527,-180.645742,0.0004082,14]
[343250870,1732532688552,-151.0,0.0004082,14]
[343250871,1732532688578,-274.642041,0.0004082,14]
[343250872,1732532688605,-500.0,0.0004082,21]
[343250873,1732532688630,-151.0,0.0004082,14]
[343250874,1732532688656,-3978.3,0.0004082,21]
[343250875,1732532688683,-500.0,0.0004082,21]
[343250876,1732532688927,-151.0,0.0004082,14]
[343250877,1732532688956,-161.112775,0.0004082,14]
[343250878,1732532688982,-161.112775,0.0004082,14]
[343250879,1732532689024,-1146.63,0.0004082,21]
[343250880,1732532689068,-1748.64,0.0004082,21]
[343250881,1732532689099,-155.208423,0.0004082,14]
[343250882,1732532689129,-151.0,0.0004082,14]
[343250883,1732532689159,-5468.25,0.0004082,21]
[343250884,1732532689188,-151.0,0.0004082,14]
[343250885,1732532689220,-151.0,0.0004082,14]
[343250886,1732532689255,-708.11,0.0004082,21]
[343250887,1732532689286,-500.0,0.0004082,21]
[343250888,1732532689314,-500.0,0.0004082,21]
[343250889,1732532689341,-1409.15,0.0004082,21]
[343250890,1732532689368,-758.58,0.0004082,21]
[343250891,1732532689397,-1250.960024,0.0004082,14]
[343250892,1732532689424,-687.476365,0.0004082,14]
[343250893,1732532689454,-1250.960024,0.0004082,14]
[343250894,1732532689481,-5734.8,0.0004082,21]
[343250895,1732532689509,-687.476365,0.0004082,14]
[343250896,1732532689536,-677.5,0.0004082,21]
[343250897,1732532689561,-168.601148,0.0004082,14]
[343250898,1732532689593,-168.601148,0.0004082,14]
[343250899,1732532689619,-580.49,0.0004082,21]
[343250900,1732532689644,-151.0,0.0004082,14]
[343250901,1732532689671,-1167.03,0.0004082,21]
[343250902,1732532689699,-1719.67,0.0004082,21]
[343250903,1732532689725,-500.0,0.0004082,21]
[343250904,1732532689751,-581.901616,0.0004082,14]
[343250905,1732532689776,-3582.8,0.0004082,21]
[343250906,1732532689802,-581.901616,0.0004082,14]
[343250907,1732532689828,-151.0,0.0004082,14]
[343250908,1732532689856,-500.0,0.0004082,21]
[343250909,1732532689888,-500.0,0.0004082,21]
[343250910,1732532689917,-151.0,0.0004082,14]
[343250911,1732532689956,-151.0,0.00040821,14]
[343250912,1732532690022,-151.0,0.00040821,14]
[343250913,1732532690050,-151.0,0.00040821,14]
[343250914,1732532690080,-151.0,0.00040821,14]
[343250915,1732532690107,-243.15983,0.00040821,14]
[343250916,1732532690137,-151.0,0.00040821,14]
[343250917,1732532690168,-167.029036,0.00040821,14]
[343250918,1732532690201,-151.0,0.00040821,14]
[343250919,1732532690232,-151.0,0.00040821,14]
[343250920,1732532690262,-151.0,0.00040821,14]
[343250921,1732532690292,-151.0,0.00040821,14]
[343250922,1732532690322,-151.0,0.00040821,14]
[343250923,1732532690352,-398.458523,0.00040821,14]
[343250924,1732532690384,-398.458523,0.00040821,14]
[343250925,1732532690412,-594.537871,0.00040821,7]
[343250926,1732532690440,-158.096478,0.00040821,14]
[343250927,1732532690472,-594.537871,0.00040821,7]
[343250928,1732532690502,-4585.2,0.00040821,21]
[343250929,1732532690531,-459.381304,0.00040821,14]
[343250930,1732532690557,-151.0,0.00040821,14]
[343250931,1732532690585,-459.381304,0.00040821,14]
[343250932,1732532690611,-9562.63768,0.00040821,14]
[343250933,1732532690637,-851.7,0.00040821,21]
[343250934,1732532690663,-151.0,0.00040821,7]
[343250935,1732532690688,-9562.63768,0.00040821,14]
[343250936,1732532690717,-154.307722,0.00040821,14]
[343250937,1732532690743,-5410.63,0.00040821,21]
[343250938,1732532690769,-151.0,0.00040821,14]
[343250939,1732532690798,-500.0,0.00040821,21]
[343250940,1732532690824,-151.0,0.00040821,14]
[343250941,1732532690848,-151.0,0.00040821,14]
[343250942,1732532690873,-1973.4,0.00040821,21]
[343250943,1732532690898,-4420.66,0.00040821,21]
[343250944,1732532690924,-161.112775,0.00040821,14]
[343250945,1732532690951,-5984.38,0.00040821,21]
[343250946,1732532690977,-161.112775,0.00040821,14]
[343250947,1732532691004,-6051.6,0.00040821,21]
[343250948,1732532691032,-1300.59,0.00040821,21]
[343250949,1732532691060,-500.0,0.00040821,21]
[343250950,1732532691092,-1357.91,0.00040821,21]
[343250951,1732532691120,-3894.59,0.00040821,21]
[343250952,1732532691147,-14627.41,0.00040821,21]
[343250953,1732532691175,-2412.24,0.00040821,21]
[343250954,1732532691206,-2936.98,0.00040821,21]
[343250955,1732532691233,-581.901616,0.00040821,14]
[343250956,1732532691262,-150.0,0.00040821,2]
[343250957,1732532691288,-581.901616,0.00040821,14]
[343250958,1732532691314,-151.0,0.00040821,14]
[343250959,1732532691340,-500.0,0.00040821,21]
[343250960,1732532691366,-151.0,0.00040821,14]
[343250961,1732532691397,-150.0,0.00040828,2]
[343250962,1732532691429,-150.0,0.00040841,2]
[343250963,1732532691460,-150.0,0.00040844,2]
[343250964,1732532691489,-150.0,0.00040844,2]
[343250965,1732532691517,-933.79202511,0.0004085,2]
[343250966,1732532691545,-150.0,0.00040856,2]
[343250967,1732532691574,-150.0,0.00040858,2]
[343250968,1732532691602,-150.0,0.00040859,2]
[343250969,1732532691630,-150.0,0.00040863,2]
[343250970,1732532691655,-150.0,0.00040866,2]
[343250971,1732532691684,-150.0,0.00040867,2]
[343250972,1732532691712,-1481.29200054,0.00040872,2]
[343250973,1732532691739,-150.0,0.00040876,2]
[343250974,1732532691764,-4086.84100473,0.00040877,2]
[343250975,1732532691790,-25991.56839471,0.0004088,2]
[343250976,1732532691815,-526.04730534,0.00040883,2]
[343250977,1732532691842,-150.0,0.00040885,2]
[343250978,1732532691867,-151.0,0.00040886,14]
[343250979,1732532691892,-151.0,0.00040886,14]
[343250980,1732532691917,-151.0,0.00040886,14]
[343250981,1732532691947,-1250.960024,0.00040886,14]
[343250982,1732532692172,-1250.960024,0.00040886,14]
[343250983,1732532692200,-217.91134468,0.00040889,2]
[343250984,1732532692226,-177.02830925,0.00040892,15]
[343250985,1732532692253,-526.04730534,0.00040894,2]
[343250986,1732532692288,-150.0,0.00040894,2]
[343250987,1732532692315,-25991.56839471,0.00040894,2]
[343250988,1732532692340,-4335.17196627,0.00040897,2]
[343250989,1732532692367,-150.0,0.00040897,2]
[343250990,1732532692394,-25991.56839471,0.00040899,2]
[343250991,1732532692420,-272.7045308,0.000409,2]
[343250992,1732532692445,-36834.002125,0.000409,2]
[343250993,1732532692469,-174.24113218,0.000409,2]
[343250994,1732532692495,-151.0,0.000409,14]
[343250995,1732532692524,-687.476365,0.000409,14]
[343250996,1732532692549,-687.476365,0.000409,14]
[343250997,1732532692574,-168.601148,0.000409,14]
[343250998,1732532692598,-168.601148,0.000409,14]
[343250999,1732532692625,-150.0,0.00040901,2]
[343251000,1732532692649,-18899.13030203,0.00040903,2]
[343251001,1732532692677,-217.91134468,0.00040903,2]
[343251002,1732532692705,-150.0,0.00040903,2]
[343251003,1732532692730,-150.0,0.00040903,2]
[343251004,1732532692755,-217.91134468,0.00040907,2]
[343251005,1732532692780,-150.0,0.00040909,2]
[343251006,1732532692805,-150.0,0.0004091,2]
[343251007,1732532692829,-526.04730534,0.00040911,2]
[343251008,1732532692853,-4313.02035049,0.00040913,2]
[343251009,1732532692876,-4086.84100473,0.00040916,2]
[343251010,1732532692900,-272.7045308,0.00040916,2]
[343251011,1732532692928,-150.0,0.00040919,2]
[343251012,1732532692954,-4335.17196627,0.00040921,2]
[343251013,1732532692979,-4335.17196627,0.00040921,2]
[343251014,1732532693005,-4335.17196627,0.00040922,2]
[343251015,1732532693032,-150.0,0.00040927,2]
[343251016,1732532693057,-4335.17196627,0.00040928,2]
[343251017,1732532693084,-150.0,0.00040931,2]
[343251018,1732532693109,-4313.02035049,0.00040933,2]
[343251019,1732532693134,-18899.13030203,0.00040936,2]
[343251020,1732532693162,-150.0,0.00040937,2]
[343251021,1732532693188,-150.0,0.00040938,2]
[343251022,1732532693215,-150.0,0.00040939,2]
[343251023,1732532693244,-4086.84100473,0.0004094,2]
[343251024,1732532693268,-272.7045308,0.0004094,2]
[343251025,1732532693295,-18899.13030203,0.00040941,2]
[343251026,1732532693319,-18899.13030203,0.00040941,2]
[343251027,1732532693343,-526.04730534,0.00040945,2]
[343251028,1732532693367,-193.903852,0.00040945,15]
[343251029,1732532693391,-1069.486,0.00040954,59]
[343251030,1732532693416,-168.992,0.00040954,59]
[343251031,1732532693445,-150.0,0.00040954,2]
[343251032,1732532693470,-217.91134468,0.00040957,2]
[343251033,1732532693494,-500.0,0.00040959,120]
[343251034,1732532693520,-500.0,0.0004096,21]
[343251035,1732532693546,-526.04730534,0.00040962,2]
[343251036,1732532693572,-4086.84100473,0.00040963,2]
[343251037,1732532693598,-25991.56839471,0.00040963,2]
[343251038,1732532693622,-4086.84100473,0.00040969,2]
[343251039,1732532693648,-5311.92992571,0.00040971,14]
[343251040,1732532693673,-500.0,0.00040972,21]
[343251041,1732532693703,-1065.09,0.00040972,21]
[343251042,1732532693729,-500.0,0.00040972,21]
[343251043,1732532693754,-500.0,0.00040972,21]
[343251044,1732532693779,-500.0,0.00040972,21]
[343251045,1732532693804,-500.0,0.00040972,21]
[343251046,1732532693829,-500.0,0.00040972,21]
[343251047,1732532693853,-500.0,0.00040972,21]
[343251048,1732532693877,-1721.9,0.00040972,21]
[343251049,1732532693901,-776.3,0.00040972,21]
[343251050,1732532693926,-500.0,0.00040972,21]
[343251051,1732532693955,-500.0,0.00040972,21]
[343251052,1732532693981,-331.54072301,0.00040972,21]
[343251053,1732532694007,-500.0,0.00040972,21]
[343251054,1732532694033,-500.0,0.00040972,21]
[343251055,1732532694058,-500.0,0.00040972,21]
[343251056,1732532694088,-500.0,0.00040972,21]
[343251057,1732532694113,-1826.63,0.00040972,21]
[343251058,1732532694138,-2723.73,0.00040972,21]
[343251059,1732532694163,-500.0,0.00040972,21]
[343251060,1732532694197,-951.95,0.00040972,21]
[343251061,1732532694224,-500.0,0.00040972,21]
[343251062,1732532694253,-870.89,0.00040972,21]
[343251063,1732532694279,-2153.49,0.00040972,21]
[343251064,1732532694311,-500.0,0.00040972,21]
[343251065,1732532694344,-500.0,0.00040972,21]
[343251066,1732532694369,-1113.59,0.00040972,21]
[343251067,1732532694395,-659.89,0.00040972,21]
[343251068,1732532694419,-500.0,0.00040972,21]
[343251069,1732532694445,-500.0,0.00040972,21]
[343251070,1732532694470,-500.0,0.00040972,21]
[343251071,1732532694495,-2119.8,0.00040972,21]
[343251072,1732532694520,-500.0,0.00040972,21]
[343251073,1732532694546,-500.0,0.00040972,21]
[343251074,1732532694571,-500.0,0.00040972,21]
[343251075,1732532694594,-843.63,0.00040972,2]
[343251076,1732532694619,-2388.93,0.00040972,21]
[343251077,1732532694644,-4974.71,0.00040972,21]
[343251078,1732532694669,-500.0,0.00040972,21]
[343251079,1732532694693,-500.0,0.00040972,21]
[343251080,1732532694718,-500.0,0.00040972,21]
[343251081,1732532694742,-500.0,0.00040972,21]
[343251082,1732532694765,-500.0,0.00040972,21]
[343251083,1732532694789,-507.71128486,0.00040972,21]
[343251084,1732532695022,-500.0,0.00040972,21]
[343251085,1732532695050,-3450.2,0.00040972,21]
[343251086,1732532695079,-954.85,0.00040972,21]
[343251087,1732532695106,-508.76762593,0.00040972,21]
[343251088,1732532695132,-206.13127014,0.00040972,21]
[343251089,1732532695158,-1553.14,0.00040972,21]
[343251090,1732532695186,-500.0,0.00040972,21]
[343251091,1732532695219,-500.0,0.00040972,21]
[343251092,1732532695247,-1151.71,0.00040972,21]
[343251093,1732532695275,-500.0,0.00040972,21]
[343251094,1732532695301,-500.0,0.00040972,21]
[343251095,1732532695328,-500.0,0.00040972,21]
[343251096,1732532695359,-500.0,0.00040972,21]
[343251097,1732532695391,-500.0,0.00040972,21]
[343251098,1732532695421,-571.37,0.00040972,21]
[343251099,1732532695453,-500.0,0.00040972,21]
[343251100,1732532695482,-500.0,0.00040972,21]
[343251101,1732532695508,-500.0,0.00040972,21]
[343251102,1732532695533,-500.0,0.00040972,21]
[343251103,1732532695558,-312.12433364,0.00040972,21]
[343251104,1732532695583,-500.0,0.00040972,21]
[343251105,1732532695608,-500.0,0.00040972,21]
[343251106,1732532695634,-894.49,0.00040972,21]
[343251107,1732532695659,-500.0,0.00040972,21]
[343251108,1732532695686,-3520.87,0.00040972,21]
[343251109,1732532695714,-500.0,0.00040972,21]
[343251110,1732532695742,-9353.77,0.00040972,21]
[343251111,1732532695769,-500.0,0.00040972,21]
[343251112,1732532695797,-511.04279544,0.00040972,21]
[343251113,1732532695823,-573.7769207,0.00040972,21]
[343251114,1732532695850,-500.0,0.00040972,21]
[343251115,1732532695876,-502.98162387,0.00040972,21]
[343251116,1732532695902,-1431.01,0.00040972,21]
[343251117,1732532695928,-500.0,0.00040972,21]
[343251118,1732532695959,-5664.41,0.00040972,21]
[343251119,1732532695987,-500.0,0.00040972,21]
[343251120,1732532696016,-500.0,0.00040972,120]
[343251121,1732532696043,-3466.62,0.00040972,21]
[343251122,1732532696072,-500.0,0.00040972,21]
[343251123,1732532696100,-512.89921094,0.00040972,21]
[343251124,1732532696133,-525.1235089,0.00040972,21]
[343251125,1732532696164,-500.0,0.00040972,21]
[343251126,1732532696196,-18248.58,0.00040972,21]
[343251127,1732532696224,-500.0,0.00040972,21]
[343251128,1732532696253,-487.96866662,0.00040972,21]
[343251129,1732532696282,-500.0,0.00040972,21]
[343251130,1732532696309,-512.9,0.00040972,21]
[343251131,1732532696336,-500.0,0.00040972,21]
[343251132,1732532696365,-500.0,0.00040972,21]
[343251133,1732532696392,-500.0,0.00040972,21]
[343251134,1732532696419,-500.0,0.00040972,21]
[343251135,1732532696450,-1656.57,0.00040972,21]
[343251136,1732532696478,-500.0,0.00040972,21]
[343251137,1732532696507,-505.95,0.00040972,21]
[343251138,1732532696535,-500.0,0.00040972,21]
[343251139,1732532696562,-284.59690128,0.00040972,21]
[343251140,1732532696590,-500.0,0.00040972,21]
[343251141,1732532696618,-250.0,0.00040972,21]
[343251142,1732532696645,-500.0,0.00040972,21]
[343251143,1732532696672,-1259.85,0.00040972,21]
[343251144,1732532696699,-500.0,0.00040972,21]
[343251145,1732532696727,-500.0,0.00040972,21]
[343251146,1732532696753,-500.0,0.00040972,21]
[343251147,1732532696781,-828.92,0.00040972,21]
[343251148,1732532696807,-500.0,0.00040972,21]
[343251149,1732532696832,-500.0,0.00040972,21]
[343251150,1732532696858,-500.0,0.00040972,21]
[343251151,1732532696884,-600.33,0.00040972,21]
[343251152,1732532696909,-500.0,0.00040972,21]
[343251153,1732532696934,-3065.29,0.00040972,21]
[343251154,1732532696961,-500.0,0.00040972,21]
[343251155,1732532696987,-581.901616,0.00040972,14]
[343251156,1732532697013,-702.07,0.00040972,21]
[343251157,1732532697039,-581.901616,0.00040972,14]
[343251158,1732532697067,-500.0,0.00040972,21]
[343251159,1732532697098,-151.0,0.00040972,14]
[343251160,1732532697125,-500.0,0.00040972,21]
[343251161,1732532697154,-759.78,0.00040972,21]
[343251162,1732532697181,-500.0,0.00040972,21]
[343251163,1732532697209,-500.0,0.00040972,21]
[343251164,1732532697235,-151.0,0.00040972,14]
[343251165,1732532697262,-496.38760213,0.00040972,21]
[343251166,1732532697290,-3422.22,0.00040972,21]
[343251167,1732532697317,-155.439369,0.00040972,21]
[343251168,1732532697343,-500.0,0.00040973,5]
[343251169,1732532697370,-243.6367251,0.00040973,5]
[343251170,1732532697396,-500.0,0.00040973,5]
[343251171,1732532697422,-298.69571735,0.00040973,5]
[343251172,1732532697450,-181.30819975,0.00040973,30]
[343251173,1732532697475,-930.71,0.00040973,21]
[343251174,1732532697502,-500.0,0.00040973,21]
[343251175,1732532697527,-977.78,0.00040973,21]
[343251176,1732532697553,-500.0,0.00040973,21]
[343251177,1732532697579,-500.0,0.00040973,21]
[343251178,1732532697604,-1187.33,0.00040973,21]
[343251179,1732532697629,-910.51,0.00040973,21]
[343251180,1732532697656,-824.84,0.00040973,21]
[343251181,1732532697682,-1094.91,0.00040973,21]
[343251182,1732532697909,-500.0,0.00040973,21]
[343251183,1732532697936,-151.0,0.00040973,14]
[343251184,1732532697962,-152.175678,0.00040973,14]
[343251185,1732532697987,-500.0,0.00040973,21]
[343251186,1732532698012,-922.35,0.00040973,21]
[343251187,1732532698038,-500.0,0.00040973,7]
[343251188,1732532698064,-500.0,0.00040973,21]
[343251189,1732532698094,-880.06,0.00040973,21]
[343251190,1732532698121,-152.796115,0.00040973,14]
[343251191,1732532698147,-618.00183618,0.00040973,21]
[343251192,1732532698176,-152.690758,0.00040973,14]
[343251193,1732532698203,-2617.3,0.00040973,2]
[343251194,1732532698230,-151.0,0.00040973,14]
[343251195,1732532698258,-500.0,0.00040973,21]
[343251196,1732532698283,-500.0,0.00040973,21]
[343251197,1732532698308,-1017.78,0.00040973,21]
[343251198,1732532698338,-151.0,0.00040973,14]
[343251199,1732532698362,-151.0,0.00040973,14]
[343251200,1732532698388,-151.0,0.00040973,14]
[343251201,1732532698415,-500.0,0.00040973,21]
[343251202,1732532698440,-151.0,0.00040973,14]
[343251203,1732532698475,-1037.63,0.00040973,21]
[343251204,1732532698500,-151.0,0.00040973,14]
[343251205,1732532698526,-151.0,0.00040973,14]
[343251206,1732532698553,-151.0,0.00040973,14]
[343251207,1732532698579,-185.070457,0.00040973,14]
[343251208,1732532698606,-500.0,0.00040973,21]
[343251209,1732532698632,-185.070457,0.00040973,14]
[343251210,1732532698660,-151.0,0.00040973,14]
[343251211,1732532698686,-777.53,0.00040973,21]
[343251212,1732532698714,-1089.67,0.00040973,21]
[343251213,1732532698739,-151.0,0.00040973,14]
[343251214,1732532698764,-151.0,0.00040973,14]
[343251215,1732532698789,-151.0,0.00040973,14]
[343251216,1732532698815,-500.0,0.00040973,21]
[343251217,1732532698840,-551.59,0.00040973,21]
[343251218,1732532698867,-500.0,0.00040973,21]
[343251219,1732532698893,-398.458523,0.00040973,14]
[343251220,1732532698919,-398.458523,0.00040973,14]
[343251221,1732532698945,-565.25,0.00040973,21]
[343251222,1732532698973,-594.537871,0.00040973,7]
[343251223,1732532698999,-500.0,0.00040973,21]
[343251224,1732532699026,-594.537871,0.00040973,7]
[343251225,1732532699053,-500.0,0.00040973,21]
[343251226,1732532699082,-833.792001,0.00040973,14]
[343251227,1732532699107,-153.82262,0.00040973,14]
[343251228,1732532699134,-500.0,0.00040973,21]
[343251229,1732532699160,-790.58,0.00040973,21]
[343251230,1732532699185,-4250.59,0.00040973,21]
[343251231,1732532699218,-500.0,0.00040973,21]
[343251232,1732532699244,-151.0,0.00040973,14]
[343251233,1732532699270,-151.0,0.00040973,14]
[343251234,1732532699296,-159.109585,0.00040973,14]
[343251235,1732532699322,-159.109585,0.00040973,14]
[343251236,1732532699347,-500.0,0.00040973,21]
[343251237,1732532699374,-1539.48,0.00040973,21]
[343251238,1732532699401,-961.47,0.00040973,21]
[343251239,1732532699429,-500.0,0.00040973,21]
[343251240,1732532699458,-500.0,0.00040973,21]
[343251241,1732532699485,-459.381304,0.00040973,14]
[343251242,1732532699511,-208.988156,0.00040973,14]
[343251243,1732532699537,-1576.46,0.00040973,21]
[343251244,1732532699563,-500.0,0.00040973,21]
[343251245,1732532699589,-459.381304,0.00040973,14]
[343251246,1732532699614,-9562.63768,0.00040973,14]
[343251247,1732532699640,-500.0,0.00040973,21]
[343251248,1732532699665,-151.0,0.00040973,7]
[343251249,1732532699691,-9562.63768,0.00040973,14]
[343251250,1732532699719,-500.0,0.00040973,21]
[343251251,1732532699744,-504.82,0.00040973,21]
[343251252,1732532699770,-151.0,0.00040973,14]
[343251253,1732532699796,-542.31,0.00040973,21]
[343251254,1732532699823,-500.0,0.00040973,21]
[343251255,1732532699849,-151.0,0.00040973,14]
[343251256,1732532699874,-725.84,0.00040973,21]
[343251257,1732532699899,-151.0,0.00040973,14]
[343251258,1732532699924,-500.0,0.00040973,21]
[343251259,1732532699953,-151.0,0.00040973,14]
[343251260,1732532699979,-2192.49,0.00040973,21]
[343251261,1732532700005,-1580.0,0.00040973,21]
[343251262,1732532700033,-234.034448,0.00040973,14]
[343251263,1732532700062,-671.48,0.00040973,21]
[343251264,1732532700093,-161.112775,0.00040973,14]
[343251265,1732532700128,-161.112775,0.00040973,14]
[343251266,1732532700156,-633.88,0.00040973,21]
[343251267,1732532700184,-477.37233,0.00040973,7]
[343251268,1732532700215,-151.0,0.00040973,14]
[343251269,1732532700243,-500.0,0.00040973,21]
[343251270,1732532700270,-500.0,0.00040973,21]
[343251271,1732532700297,-1292.43,0.00040973,21]
[343251272,1732532700323,-500.0,0.00040973,21]
[343251273,1732532700350,-1250.960024,0.00040973,14]
[343251274,1732532700377,-700.87,0.00040973,21]
[343251275,1732532700405,-687.476365,0.00040973,14]
[343251276,1732532700435,-1250.960024,0.00040973,14]
[343251277,1732532700613,-687.476365,0.00040973,14]
[343251278,1732532700639,-390.89867688,0.00040973,21]
[343251279,1732532700665,-713.25,0.00040973,21]
[343251280,1732532700691,-500.0,0.00040973,21]
[343251281,1732532700719,-168.601148,0.00040973,14]
[343251282,1732532700744,-168.601148,0.00040973,14]
[343251283,1732532700769,-875.61,0.00040973,21]
[343251284,1732532700794,-5528.84,0.00040973,21]
[343251285,1732532700819,-500.0,0.00040973,21]
[343251286,1732532700844,-1499.87,0.00040973,21]
[343251287,1732532700871,-1922.44,0.00040973,21]
[343251288,1732532700898,-581.901616,0.00040973,14]
[343251289,1732532700925,-581.901616,0.00040973,14]
[343251290,1732532700953,-151.0,0.00040973,14]
[343251291,1732532700979,-269.05601842,0.00040973,21]
[343251292,1732532701006,-500.0,0.00040973,21]
[343251293,1732532701034,-151.0,0.00040973,14]
[343251294,1732532701061,-500.0,0.00040973,21]
[343251295,1732532701093,-150.0,0.00040974,2]
[343251296,1732532701124,-150.0,0.00040974,2]
[343251297,1732532701154,-4313.02035049,0.00040975,2]
[343251298,1732532701187,-150.0,0.00040975,2]
[343251299,1732532701225,-217.91134468,0.00040976,2]
[343251300,1732532701254,-150.0,0.00040976,2]
[343251301,1732532701283,-25991.56839471,0.00040976,2]
[343251302,1732532701312,-526.04730534,0.00040977,2]
[343251303,1732532701341,-18899.13030203,0.00040977,2]
[343251304,1732532701369,-150.0,0.00040977,2]
[343251305,1732532701395,-4313.02035049,0.00040977,2]
[343251306,1732532701427,-4313.02035049,0.00040979,2]
[343251307,1732532701457,-4335.17196627,0.00040979,2]
[343251308,1732532701483,-272.7045308,0.0004098,2]
[343251309,1732532701515,-272.7045308,0.00040981,2]
[343251310,1732532701546,-150.0,0.00040982,2]
[343251311,1732532701574,-4086.84100473,0.00040984,2]
[343251312,1732532701602,-18899.13030203,0.00040985,2]
[343251313,1732532701630,-272.7045308,0.00040985,2]
[343251314,1732532701657,-4313.02035049,0.00040988,2]
[343251315,1732532701684,-328.75186433,0.00040989,7]
[343251316,1732532701716,-200.0,0.00040989,7]
[343251317,1732532701745,-614.558,0.00040989,120]
[343251318,1732532701773,-200.0,0.00040989,7]
[343251319,1732532701803,-600.33,0.00040991,21]
[343251320,1732532701832,-500.0,0.00040992,21]
[343251321,1732532701859,-174.13494539,0.00040992,21]
[343251322,1732532701886,-500.0,0.00040992,21]
[343251323,1732532701914,-500.0,0.00040992,21]
[343251324,1732532701942,-551.86,0.00040992,21]
[343251325,1732532701972,-2135.66,0.00040992,21]
[343251326,1732532702001,-500.0,0.00040992,21]
[343251327,1732532702031,-500.0,0.00040992,21]